[Event "44th Chess Olympiad Women 2022"]
[Site "Chennai"]
[Date "2022.08.05"]
[Round "7.33"]
[White "Sovetbekova, Nurai"]
[Black "Avelino, Camila Biscaya"]
[Result "1-0"]
[WhiteElo "1693"]
[BlackElo "1863"]
[Annotator "NA RC"]
[PlyCount "119"]
[EventDate "2022.??.??"]
[TimeControl "60"]

1. d4 {[%emt 0:00:03]} Nf6 {[%emt 0:00:23]} 2. c4 {[%emt 0:00:07]} g6 {[%emt 0:
00:00]} 3. g3 {[%emt 0:00:10]} Bg7 {[%emt 0:00:34]} 4. Bg2 {[%emt 0:00:07]} O-O
{[%emt 0:00:48]} 5. Nc3 {[%emt 0:00:06]} d6 {[%emt 0:00:29]} 6. Nf3 {[%emt 0:
00:00]} Nbd7 {[%emt 0:00:36]} 7. O-O {[%emt 0:00:13]} e5 {[%emt 0:00:32]} 8. e4
{[%emt 0:00:24]} exd4 {[%emt 0:00:54]} 9. Nxd4 {[%emt 0:00:18]} Re8 {[%emt 0:
00:00]} 10. h3 {[%emt 0:00:49]} Nc5 {[%emt 0:02:04]} 11. Re1 {[%emt 0:00:37]}
Bd7 {[%emt 0:06:05]} 12. Rb1 {[%emt 0:03:35]} Qc8 {[%emt 0:08:14]} 13. Kh2 {
[%emt 0:01:10]} Re5 {[%emt 0:18:33]} 14. f4 {[%emt 0:06:59]} Rh5 {[%emt 0:00:
00]} 15. f5 {[%emt 0:02:37]} gxf5 {[%emt 0:02:16]} 16. Nd5 {[%emt 0:01:14]}
Nxd5 {[%emt 0:06:57]} 17. exd5 {[%emt 0:03:24]} Rh6 {[%emt 0:01:16]} 18. Bxh6 {
[%emt 0:00:38]} Bxh6 {[%emt 0:00:07]} 19. b4 {[%emt 0:11:31]} Ne4 {[%emt 0:00:
00]} 20. Bxe4 {[%emt 0:02:47]} fxe4 {[%emt 0:00:06]} 21. Qh5 {[%emt 0:00:48]}
Qf8 {[%emt 0:03:49]} 22. Rxe4 {[%emt 0:01:51]} Bg7 {[%emt 0:02:54]} 23. Rbe1 {
[%emt 0:05:47]} Be5 {[%emt 0:11:58]} 24. Nf5 {[%emt 0:03:09]} Bxf5 {[%emt 0:00:
00]} 25. Qxf5 {[%emt 0:00:09]} Qh6 {[%emt 0:01:04]} 26. R1e2 {[%emt 0:03:12]}
Kh8 {[%emt 0:10:38]} 27. Rg4 {[%emt 0:06:51]} f6 {[%emt 0:05:37]} 28. Kg2 {
[%emt 0:06:51]} Rf8 {[%emt 0:01:24]} 29. Rf2 {[%emt 0:03:17]} Qe3 {[%emt 0:00:
00]} 30. Qd7 {[%emt 0:07:35]} f5 {[%emt 0:00:35]} 31. Qe7 {[%emt 0:00:11]} Rc8
{[%emt 0:00:34]} 32. Rxf5 {[%emt 0:01:19]} Qd2+ {[%emt 0:00:27]} 33. Rf2 {
[%emt 0:00:10]} Qh6 {[%emt 0:00:25]} 34. Rh4 {[%emt 0:03:59]} Qg6 {[%emt 0:00:
00]} 35. Rf8+ {[%emt 0:00:17]} Rxf8 {[%emt 0:00:10]} 36. Qxf8+ {[%emt 0:00:02]}
Qg8 {[%emt 0:00:12]} 37. Qxg8+ {[%emt 0:00:05]} Kxg8 {[%emt 0:00:07]} 38. Kf3 {
[%emt 0:00:11]} Kg7 {[%emt 0:01:28]} 39. Ke4 {[%emt 0:02:33]} Bc3 {[%emt 0:00:
00]} 40. b5 {[%emt 0:00:31]} Kg6 {[%emt 0:00:32]} 41. Rg4+ {[%emt 0:30:15]} Kf6
{[%emt 0:30:30]} 42. Rg8 {[%emt 0:00:17]} Ba5 {[%emt 0:00:00]} 43. Rb8 {
[%emt 0:00:00]} Bb6 {[%emt 0:00:00]} 44. Rxb7 {[%emt 0:00:00]} Kg6 {[%emt 0:00:
00]} 45. Rb8 {[%emt 0:00:00]} Kg5 {[%emt 0:00:00]} 46. Rg8+ {[%emt 0:00:00]}
Kf6 {[%emt 0:00:00]} 47. Re8 {[%emt 0:00:00]} Kf7 {[%emt 0:00:00]} 48. Re6 {
[%emt 0:00:00]} Bf2 {[%emt 0:00:00]} 49. Kf3 {[%emt 0:00:00]} Bc5 {[%emt 0:00:
00]} 50. h4 {[%emt 0:00:00]} Ba3 {[%emt 0:00:00]} 51. g4 {[%emt 0:00:00]} Bc5 {
[%emt 0:00:00]} 52. Kf4 {[%emt 0:00:00]} Ba3 {[%emt 0:00:00]} 53. Kf5 {[%emt 0:
00:00]} Bc5 {[%emt 0:00:00]} 54. g5 {[%emt 0:00:00]} Bf2 {[%emt 0:00:00]} 55.
h5 {[%emt 0:00:00]} Bb6 {[%emt 0:00:00]} 56. g6+ {[%emt 0:00:00]} hxg6+ {
[%emt 0:00:00]} 57. hxg6+ {[%emt 0:00:00]} Kg7 {[%emt 0:00:00]} 58. Re7+ {
[%emt 0:00:00]} Kf8 {[%emt 0:00:00]} 59. Rf7+ {[%emt 0:00:00]} Kg8 {[%emt 0:00:
00]} 60. Ke6 {[%emt 0:00:00]} 1-0

[Event "44th Chess Olympiad Women 2022"]
[Site "Chennai"]
[Date "2022.08.05"]
[Round "7.33"]
[White "Zairbek kyzy, Begimai"]
[Black "Pipiras, Filipa Fortuna"]
[Result "0-1"]
[WhiteElo "1949"]
[BlackElo "2139"]
[Annotator "NA"]
[PlyCount "74"]
[EventDate "2022.??.??"]
[TimeControl "60"]

1. e4 {[%emt 0:00:02]} c5 {[%emt 0:04:07]} 2. c3 {[%emt 0:00:05]} Nf6 {[%emt 0:
00:00]} 3. e5 {[%emt 0:00:05]} Nd5 {[%emt 0:00:29]} 4. d4 {[%emt 0:00:05]} cxd4
{[%emt 0:00:33]} 5. Nf3 {[%emt 0:00:03]} Nc6 {[%emt 0:00:56]} 6. cxd4 {[%emt 0:
00:00]} d6 {[%emt 0:01:46]} 7. Bc4 {[%emt 0:00:23]} dxe5 {[%emt 0:02:09]} 8.
dxe5 {[%emt 0:03:30]} Ndb4 {[%emt 0:05:45]} 9. Qb3 {[%emt 0:04:43]} e6 {
[%emt 0:00:00]} 10. O-O {[%emt 0:03:37]} Na5 {[%emt 0:00:00]} 11. Bb5+ {
[%emt 0:04:58]} Bd7 {[%emt 0:02:36]} 12. Qa4 {[%emt 0:02:34]} Bxb5 {[%emt 0:00:
00]} 13. Qxb5+ {[%emt 0:00:09]} Nac6 {[%emt 0:00:15]} 14. Nc3 {[%emt 0:04:55]}
a6 {[%emt 0:02:40]} 15. Qe2 {[%emt 0:00:30]} Qd3 {[%emt 0:05:13]} 16. Rd1 {
[%emt 0:05:59]} Qxe2 {[%emt 0:02:13]} 17. Nxe2 {[%emt 0:01:10]} Bc5 {[%emt 0:
00:00]} 18. a3 {[%emt 0:05:11]} Nd5 {[%emt 0:02:01]} 19. Nf4 {[%emt 0:02:20]}
Nce7 {[%emt 0:11:42]} 20. Nxd5 {[%emt 0:01:02]} Nxd5 {[%emt 0:00:31]} 21. Nd2 {
[%emt 0:02:47]} O-O {[%emt 0:04:46]} 22. Ne4 {[%emt 0:03:30]} Ba7 {[%emt 0:00:
00]} 23. Bd2 {[%emt 0:07:50]} Bd4 {[%emt 0:07:38]} 24. Bc3 {[%emt 0:06:29]}
Nxc3 {[%emt 0:03:33]} 25. bxc3 {[%emt 0:01:25]} Bxe5 {[%emt 0:00:25]} 26. Rd7 {
[%emt 0:01:09]} b5 {[%emt 0:06:55]} 27. Rad1 {[%emt 0:00:24]} Rfc8 {[%emt 0:00:
00]} 28. g3 {[%emt 0:01:13]} h6 {[%emt 0:01:31]} 29. f4 {[%emt 0:09:26]} Bxc3 {
[%emt 0:01:04]} 30. Rb7 {[%emt 0:00:42]} Bb2 {[%emt 0:02:55]} 31. Rdd7 {
[%emt 0:00:55]} Bxa3 {[%emt 0:00:27]} 32. Rxf7 {[%emt 0:01:21]} Bf8 {[%emt 0:
00:00]} 33. Kg2 {[%emt 0:10:06]} a5 {[%emt 0:01:09]} 34. g4 {[%emt 0:02:35]} a4
{[%emt 0:01:08]} 35. Nd6 {[%emt 0:06:03]} Rc2+ {[%emt 0:03:12]} 36. Kf3 {
[%emt 0:00:10]} a3 {[%emt 0:00:14]} 37. Nxb5 {[%emt 0:01:02]} a2 {[%emt 0:00:
00]} 0-1

[Event "44th Chess Olympiad Women 2022"]
[Site "Chennai"]
[Date "2022.08.05"]
[Round "7.34"]
[White "Antonova, Nadezhda"]
[Black "Ptacnikova, Lenka"]
[Result "1-0"]
[WhiteElo "1832"]
[BlackElo "2066"]
[Annotator "NA RC"]
[PlyCount "105"]
[EventDate "2022.??.??"]
[TimeControl "60"]

1. d4 {[%emt 0:00:03]} Nf6 {[%emt 0:00:12]} 2. c4 {[%emt 0:00:14]} e6 {[%emt 0:
00:00]} 3. g3 {[%emt 0:00:26]} d5 {[%emt 0:00:59]} 4. Nf3 {[%emt 0:00:26]} c6 {
[%emt 0:02:21]} 5. Bg2 {[%emt 0:00:49]} Nbd7 {[%emt 0:01:32]} 6. Qc2 {[%emt 0:
00:00]} Be7 {[%emt 0:00:32]} 7. O-O {[%emt 0:00:12]} O-O {[%emt 0:00:17]} 8.
Bf4 {[%emt 0:00:44]} Ne4 {[%emt 0:05:21]} 9. Nfd2 {[%emt 0:01:51]} g5 {[%emt 0:
00:00]} 10. Be3 {[%emt 0:02:46]} f5 {[%emt 0:07:20]} 11. Nxe4 {[%emt 0:02:47]}
dxe4 {[%emt 0:04:51]} 12. Nc3 {[%emt 0:02:21]} Nb6 {[%emt 0:05:49]} 13. b3 {
[%emt 0:01:56]} Bd7 {[%emt 0:08:13]} 14. Rad1 {[%emt 0:04:17]} Rc8 {[%emt 0:00:
00]} 15. a4 {[%emt 0:03:51]} a5 {[%emt 0:01:11]} 16. Bc1 {[%emt 0:04:18]} Qc7 {
[%emt 0:01:23]} 17. f3 {[%emt 0:08:51]} exf3 {[%emt 0:12:06]} 18. exf3 {
[%emt 0:06:32]} Bf6 {[%emt 0:00:38]} 19. f4 {[%emt 0:02:58]} g4 {[%emt 0:00:13]
} 20. Kh1 {[%emt 0:01:10]} h5 {[%emt 0:01:52]} 21. Qf2 {[%emt 0:05:34]} Rcd8 {
[%emt 0:02:53]} 22. Be3 {[%emt 0:02:40]} Nc8 {[%emt 0:00:06]} 23. Rc1 {[%emt 0:
00:00]} Rf7 {[%emt 0:12:44]} 24. Ne2 {[%emt 0:04:20]} h4 {[%emt 0:02:34]} 25.
gxh4 {[%emt 0:00:22]} Rh7 {[%emt 0:00:11]} 26. Ng3 {[%emt 0:06:26]} Bxh4 {
[%emt 0:00:25]} 27. d5 {[%emt 0:00:47]} c5 {[%emt 0:04:46]} 28. Kg1 {[%emt 0:
00:00]} b6 {[%emt 0:00:10]} 29. Bd2 {[%emt 0:03:36]} Ne7 {[%emt 0:01:23]} 30.
Bc3 {[%emt 0:01:41]} exd5 {[%emt 0:01:00]} 31. cxd5 {[%emt 0:00:21]} Ng6 {
[%emt 0:00:40]} 32. Rce1 {[%emt 0:12:46]} Bc8 {[%emt 0:03:03]} 33. Be5 {
[%emt 0:03:09]} Qf7 {[%emt 0:00:39]} 34. Rd1 {[%emt 0:03:05]} Bb7 {[%emt 0:00:
00]} 35. Qd2 {[%emt 0:00:29]} Rd7 {[%emt 0:01:51]} 36. Qd3 {[%emt 0:02:03]}
Bxg3 {[%emt 0:00:30]} 37. hxg3 {[%emt 0:00:50]} Ne7 {[%emt 0:00:37]} 38. d6 {
[%emt 0:00:53]} Nc8 {[%emt 0:00:42]} 39. Bxb7 {[%emt 0:04:49]} Rxb7 {[%emt 0:
00:00]} 40. Kg2 {[%emt 0:01:01]} Rd7 {[%emt 0:00:42]} 41. Rh1 {[%emt 0:31:47]}
Ne7 {[%emt 0:30:39]} 42. Rxh7 {[%emt 0:00:00]} Kxh7 {[%emt 0:00:00]} 43. Qb5 {
[%emt 0:00:00]} Nd5 {[%emt 0:00:00]} 44. Kf2 {[%emt 0:00:00]} Nb4 {[%emt 0:00:
00]} 45. Rd2 {[%emt 0:00:00]} Kg6 {[%emt 0:00:00]} 46. Qc4 {[%emt 0:00:00]} Qe8
{[%emt 0:00:00]} 47. Re2 {[%emt 0:00:00]} Rh7 {[%emt 0:00:00]} 48. Ke1 {
[%emt 0:01:23]} Rh1+ {[%emt 0:00:00]} 49. Kd2 {[%emt 0:00:22]} Kh5 {[%emt 0:00:
00]} 50. Bc3 {[%emt 0:00:44]} Qd7 {[%emt 0:00:00]} 51. Qe6 {[%emt 0:01:00]}
Qxe6 {[%emt 0:00:00]} 52. Rxe6 {[%emt 0:00:01]} Rh2+ {[%emt 0:00:00]} 53. Kd1 {
[%emt 0:01:00]} 1-0

[Event "44th Chess Olympiad Women 2022"]
[Site "Chennai"]
[Date "2022.08.05"]
[Round "7.34"]
[White "Finnbogadottir, Tinna Kristin"]
[Black "Hotami, Mutriba"]
[Result "1/2-1/2"]
[WhiteElo "1828"]
[BlackElo "1846"]
[Annotator "NA RC"]
[PlyCount "90"]
[EventDate "2022.??.??"]
[TimeControl "60"]

1. e4 {[%emt 0:00:03]} c5 {[%emt 0:00:04]} 2. c3 {[%emt 0:00:03]} e5 {[%emt 0:
00:00]} 3. Nf3 {[%emt 0:00:25]} Nc6 {[%emt 0:00:06]} 4. Bc4 {[%emt 0:01:23]} d6
{[%emt 0:06:03]} 5. d3 {[%emt 0:06:47]} h6 {[%emt 0:01:20]} 6. Nbd2 {[%emt 0:
00:00]} Nf6 {[%emt 0:01:12]} 7. O-O {[%emt 0:06:31]} Be7 {[%emt 0:08:00]} 8.
Bb3 {[%emt 0:01:01]} O-O {[%emt 0:01:36]} 9. Re1 {[%emt 0:06:43]} Nh7 {[%emt 0:
00:00]} 10. Nf1 {[%emt 0:01:45]} Ng5 {[%emt 0:03:15]} 11. Ne3 {[%emt 0:05:02]}
Be6 {[%emt 0:08:30]} 12. Bc2 {[%emt 0:02:40]} Nxf3+ {[%emt 0:05:35]} 13. Qxf3 {
[%emt 0:03:47]} Bg5 {[%emt 0:00:38]} 14. Nf5 {[%emt 0:04:55]} Bxc1 {[%emt 0:00:
00]} 15. Raxc1 {[%emt 0:01:24]} Bxf5 {[%emt 0:01:28]} 16. Qxf5 {[%emt 0:03:14]}
Ne7 {[%emt 0:03:56]} 17. Qg4 {[%emt 0:01:30]} Ng6 {[%emt 0:02:48]} 18. Bb3 {
[%emt 0:05:59]} Qg5 {[%emt 0:04:09]} 19. Qxg5 {[%emt 0:00:52]} hxg5 {[%emt 0:
00:00]} 20. f3 {[%emt 0:05:17]} Rac8 {[%emt 0:08:02]} 21. a4 {[%emt 0:04:32]}
Nf4 {[%emt 0:06:19]} 22. Bc4 {[%emt 0:03:17]} Ne6 {[%emt 0:08:34]} 23. Bxe6 {
[%emt 0:01:02]} fxe6 {[%emt 0:00:03]} 24. c4 {[%emt 0:06:48]} Kf7 {[%emt 0:00:
00]} 25. Kf2 {[%emt 0:01:34]} Kf6 {[%emt 0:02:15]} 26. Rc2 {[%emt 0:04:27]}
Rfd8 {[%emt 0:01:51]} 27. Ke2 {[%emt 0:01:17]} d5 {[%emt 0:01:30]} 28. Rec1 {
[%emt 0:03:59]} b6 {[%emt 0:00:57]} 29. Rd2 {[%emt 0:03:28]} dxc4 {[%emt 0:00:
00]} 30. dxc4 {[%emt 0:00:32]} Rd4 {[%emt 0:00:09]} 31. Rcc2 {[%emt 0:01:53]}
Rcd8 {[%emt 0:02:01]} 32. h3 {[%emt 0:00:17]} Rxd2+ {[%emt 0:01:09]} 33. Rxd2 {
[%emt 0:00:08]} Rd4 {[%emt 0:00:04]} 34. b3 {[%emt 0:00:39]} Ke7 {[%emt 0:00:
00]} 35. Ra2 {[%emt 0:01:16]} a5 {[%emt 0:05:41]} 36. Ra1 {[%emt 0:00:09]} Kf6
{[%emt 0:00:15]} 37. g4 {[%emt 0:00:52]} Rd8 {[%emt 0:01:05]} 38. Rh1 {[%emt 0:
00:00]} Rd7 {[%emt 0:00:46]} 39. h4 {[%emt 0:02:38]} gxh4 {[%emt 0:00:19]} 40.
Rxh4 {[%emt 0:00:11]} Rd8 {[%emt 0:00:16]} 41. Rh5 {[%emt 0:30:28]} Rf8 {
[%emt 0:04:44]} 42. Ke3 {[%emt 0:00:00]} Rd8 {[%emt 0:00:45]} 43. Ke2 {[%emt 0:
00:00]} Rg8 {[%emt 0:04:48]} 44. Ke3 {[%emt 0:00:00]} Rd8 {[%emt 0:02:17]} 45.
Ke2 {[%emt 0:00:00]} Rf8 {[%emt 0:03:56]} 1/2-1/2

[Event "44th Chess Olympiad Women 2022"]
[Site "Chennai"]
[Date "2022.08.05"]
[Round "7.34"]
[White "Johannsdottir, Johanna Bjorg"]
[Black "Abrorova, Sabrina"]
[Result "1-0"]
[WhiteElo "1976"]
[BlackElo "1799"]
[Annotator "NA RC"]
[PlyCount "95"]
[EventDate "2022.??.??"]
[TimeControl "60"]

1. e4 {[%emt 0:00:04]} c5 {[%emt 0:00:15]} 2. Nf3 {[%emt 0:00:06]} d6 {[%emt 0:
00:00]} 3. d4 {[%emt 0:00:04]} cxd4 {[%emt 0:00:12]} 4. Nxd4 {[%emt 0:00:04]}
Nf6 {[%emt 0:00:33]} 5. Nc3 {[%emt 0:00:04]} a6 {[%emt 0:00:43]} 6. g3 {
[%emt 0:00:06]} e6 {[%emt 0:04:22]} 7. a4 {[%emt 0:01:10]} b6 {[%emt 0:03:11]}
8. Bg2 {[%emt 0:01:29]} Bb7 {[%emt 0:01:24]} 9. O-O {[%emt 0:00:23]} Qc7 {
[%emt 0:02:53]} 10. Be3 {[%emt 0:04:04]} Nbd7 {[%emt 0:10:13]} 11. f3 {[%emt 0:
00:00]} Be7 {[%emt 0:19:51]} 12. Qd2 {[%emt 0:05:00]} Rc8 {[%emt 0:03:05]} 13.
Rad1 {[%emt 0:10:34]} Ne5 {[%emt 0:04:13]} 14. Bf2 {[%emt 0:03:06]} h5 {
[%emt 0:18:14]} 15. Nde2 {[%emt 0:02:04]} Nfd7 {[%emt 0:04:42]} 16. b3 {
[%emt 0:05:55]} Qc6 {[%emt 0:08:23]} 17. h3 {[%emt 0:04:07]} b5 {[%emt 0:03:26]
} 18. f4 {[%emt 0:04:46]} Ng6 {[%emt 0:00:24]} 19. Rc1 {[%emt 0:08:46]} f5 {
[%emt 0:09:56]} 20. axb5 {[%emt 0:02:40]} axb5 {[%emt 0:00:07]} 21. Nxb5 {
[%emt 0:00:38]} fxe4 {[%emt 0:03:48]} 22. Nbd4 {[%emt 0:01:08]} e3 {[%emt 0:00:
00]} 23. Bxc6 {[%emt 0:01:23]} exd2 {[%emt 0:00:02]} 24. Bxb7 {[%emt 0:04:11]}
dxc1=Q {[%emt 0:00:40]} 25. Rxc1 {[%emt 0:01:59]} Rb8 {[%emt 0:00:38]} 26. Be4
{[%emt 0:00:32]} Ngf8 {[%emt 0:00:39]} 27. Nc6 {[%emt 0:01:42]} Rc8 {[%emt 0:
00:00]} 28. Ned4 {[%emt 0:03:10]} d5 {[%emt 0:00:27]} 29. Bd3 {[%emt 0:00:34]}
Nc5 {[%emt 0:00:41]} 30. Bb5 {[%emt 0:00:37]} Kf7 {[%emt 0:00:34]} 31. Ra1 {
[%emt 0:08:10]} Nfd7 {[%emt 0:00:27]} 32. Nxe7 {[%emt 0:03:42]} Kxe7 {[%emt 0:
00:00]} 33. b4 {[%emt 0:01:14]} Ne4 {[%emt 0:00:17]} 34. Ra7 {[%emt 0:00:17]}
Nef6 {[%emt 0:00:29]} 35. Ra6 {[%emt 0:03:53]} Nf8 {[%emt 0:01:10]} 36. Nc6+ {
[%emt 0:00:48]} Kf7 {[%emt 0:00:29]} 37. Ra7+ {[%emt 0:00:06]} N6d7 {[%emt 0:
00:00]} 38. Ne5+ {[%emt 0:00:22]} Kf6 {[%emt 0:00:27]} 39. Nxd7+ {[%emt 0:00:
00]} Nxd7 {[%emt 0:00:07]} 40. Rxd7 {[%emt 0:00:09]} e5 {[%emt 0:00:54]} 41.
Rd6+ {[%emt 0:33:09]} Ke7 {[%emt 0:30:34]} 42. Bc5 {[%emt 0:02:00]} exf4 {
[%emt 0:00:00]} 43. gxf4 {[%emt 0:00:00]} d4 {[%emt 0:00:00]} 44. Rxd4+ {
[%emt 0:00:00]} Kf6 {[%emt 0:00:00]} 45. Rd6+ {[%emt 0:00:00]} Kf7 {[%emt 0:00:
00]} 46. Bc4+ {[%emt 0:00:00]} Ke8 {[%emt 0:00:00]} 47. Ba6 {[%emt 0:00:00]}
Rc7 {[%emt 0:00:00]} 48. Bb6 {[%emt 0:06:58]} 1-0

[Event "44th Chess Olympiad Women 2022"]
[Site "Chennai"]
[Date "2022.08.05"]
[Round "7.34"]
[White "Saidova, Rukhshona"]
[Black "Thorsteinsdottir, Hallgerdur"]
[Result "1/2-1/2"]
[WhiteElo "1624"]
[BlackElo "1934"]
[Annotator "NA"]
[PlyCount "135"]
[EventDate "2022.??.??"]
[TimeControl "60"]

1. e4 {[%emt 0:00:07]} c6 {[%emt 0:00:12]} 2. d4 {[%emt 0:00:23]} d5 {[%emt 0:
00:00]} 3. Nc3 {[%emt 0:00:13]} dxe4 {[%emt 0:00:26]} 4. Nxe4 {[%emt 0:00:14]}
Bf5 {[%emt 0:00:43]} 5. Ng3 {[%emt 0:00:37]} Bg6 {[%emt 0:00:23]} 6. h4 {
[%emt 0:00:33]} h6 {[%emt 0:00:49]} 7. h5 {[%emt 0:00:44]} Bh7 {[%emt 0:00:28]}
8. Nf3 {[%emt 0:00:25]} e6 {[%emt 0:07:34]} 9. Bd3 {[%emt 0:01:23]} Bxd3 {
[%emt 0:00:36]} 10. Qxd3 {[%emt 0:00:11]} Nf6 {[%emt 0:04:50]} 11. Bd2 {
[%emt 0:03:10]} Nbd7 {[%emt 0:09:18]} 12. O-O-O {[%emt 0:01:33]} Be7 {[%emt 0:
00:00]} 13. Kb1 {[%emt 0:01:27]} O-O {[%emt 0:00:31]} 14. Ne4 {[%emt 0:01:29]}
Nxe4 {[%emt 0:03:31]} 15. Qxe4 {[%emt 0:00:12]} Nf6 {[%emt 0:00:15]} 16. Qe2 {
[%emt 0:01:20]} Qd5 {[%emt 0:01:30]} 17. Ne5 {[%emt 0:04:27]} a5 {[%emt 0:00:
00]} 18. f3 {[%emt 0:06:20]} a4 {[%emt 0:02:34]} 19. Bc1 {[%emt 0:09:08]} Qa5 {
[%emt 0:16:52]} 20. Ng6 {[%emt 0:06:30]} Rfe8 {[%emt 0:00:43]} 21. Nxe7+ {
[%emt 0:00:29]} Rxe7 {[%emt 0:00:05]} 22. g4 {[%emt 0:01:37]} a3 {[%emt 0:00:
00]} 23. Bd2 {[%emt 0:06:03]} Qb6 {[%emt 0:03:31]} 24. b3 {[%emt 0:05:06]} Qxd4
{[%emt 0:03:03]} 25. c3 {[%emt 0:03:13]} Qc5 {[%emt 0:04:28]} 26. g5 {[%emt 0:
00:00]} hxg5 {[%emt 0:02:13]} 27. h6 {[%emt 0:01:29]} g6 {[%emt 0:01:21]} 28.
h7+ {[%emt 0:01:38]} Kh8 {[%emt 0:00:33]} 29. Rdg1 {[%emt 0:01:31]} Qf5+ {
[%emt 0:15:12]} 30. Kc1 {[%emt 0:00:43]} Nd5 {[%emt 0:07:15]} 31. Bxg5 {
[%emt 0:10:14]} Nf4 {[%emt 0:00:25]} 32. Qe4 {[%emt 0:03:00]} Nd5 {[%emt 0:00:
00]} 33. Bxe7 {[%emt 0:03:20]} Nxe7 {[%emt 0:00:03]} 34. Qxf5 {[%emt 0:00:23]}
exf5 {[%emt 0:01:43]} 35. Re1 {[%emt 0:05:34]} Nd5 {[%emt 0:00:04]} 36. Kc2 {
[%emt 0:00:17]} Kg7 {[%emt 0:00:51]} 37. b4 {[%emt 0:02:05]} b5 {[%emt 0:00:39]
} 38. Kb3 {[%emt 0:01:36]} Nf6 {[%emt 0:00:29]} 39. h8=Q+ {[%emt 0:03:38]} Rxh8
{[%emt 0:00:06]} 40. Rxh8 {[%emt 0:00:04]} Kxh8 {[%emt 0:00:05]} 41. Kxa3 {
[%emt 0:31:12]} Kg7 {[%emt 0:05:17]} 42. Kb3 {[%emt 0:00:00]} g5 {[%emt 0:00:
00]} 43. c4 {[%emt 0:00:00]} g4 {[%emt 0:06:02]} 44. fxg4 {[%emt 0:00:00]} fxg4
{[%emt 0:02:36]} 45. cxb5 {[%emt 0:00:00]} cxb5 {[%emt 0:00:11]} 46. Re5 {
[%emt 0:00:00]} Kg6 {[%emt 0:01:18]} 47. Rxb5 {[%emt 0:00:00]} Ne4 {[%emt 0:00:
00]} 48. Rd5 {[%emt 0:00:00]} f5 {[%emt 0:05:46]} 49. Rd1 {[%emt 0:01:34]} f4 {
[%emt 0:02:33]} 50. a4 {[%emt 0:01:09]} g3 {[%emt 0:02:32]} 51. a5 {[%emt 0:00:
00]} g2 {[%emt 0:01:59]} 52. Rg1 {[%emt 0:00:30]} f3 {[%emt 0:00:33]} 53. a6 {
[%emt 0:00:35]} Kf5 {[%emt 0:02:03]} 54. a7 {[%emt 0:02:48]} f2 {[%emt 0:00:05]
} 55. Rxg2 {[%emt 0:01:28]} f1=Q {[%emt 0:00:14]} 56. a8=Q {[%emt 0:00:12]}
Qxg2 {[%emt 0:00:51]} 57. Qd5+ {[%emt 0:00:15]} Kf4 {[%emt 0:00:26]} 58. Qf7+ {
[%emt 0:00:41]} Ke3 {[%emt 0:00:34]} 59. Qa7+ {[%emt 0:00:26]} Ke2 {[%emt 0:00:
00]} 60. Qa6+ {[%emt 0:00:44]} Kf3 {[%emt 0:00:31]} 61. Qd3+ {[%emt 0:00:57]}
Kf4 {[%emt 0:00:16]} 62. Qd4 {[%emt 0:00:40]} Qf3+ {[%emt 0:00:53]} 63. Ka4 {
[%emt 0:01:01]} Qe2 {[%emt 0:01:09]} 64. b5 {[%emt 0:00:42]} Kf3 {[%emt 0:00:
00]} 65. Qd5 {[%emt 0:00:22]} Kf4 {[%emt 0:00:31]} 66. Qd4 {[%emt 0:00:36]} Kf3
{[%emt 0:00:28]} 67. Qd5 {[%emt 0:00:05]} Kf4 {[%emt 0:00:28]} 68. Qd4 {
[%emt 0:00:07]} 1/2-1/2

[Event "44th Chess Olympiad Women 2022"]
[Site "Chennai"]
[Date "2022.08.05"]
[Round "7.35"]
[White "Bouah, Denise"]
[Black "Hamza, Amira"]
[Result "0-1"]
[WhiteElo "1736"]
[BlackElo "1848"]
[Annotator "NA RC"]
[PlyCount "110"]
[EventDate "2022.??.??"]
[TimeControl "60"]

1. e4 {[%emt 0:00:03]} e6 {[%emt 0:00:36]} 2. Qe2 {[%emt 0:00:07]} d5 {[%emt 0:
00:00]} 3. exd5 {[%emt 0:01:01]} Qxd5 {[%emt 0:00:27]} 4. Nc3 {[%emt 0:00:24]}
Qd8 {[%emt 0:00:39]} 5. Nf3 {[%emt 0:00:45]} Nf6 {[%emt 0:01:35]} 6. d4 {
[%emt 0:02:37]} Be7 {[%emt 0:01:05]} 7. g3 {[%emt 0:11:04]} O-O {[%emt 0:02:28]
} 8. Bg2 {[%emt 0:00:46]} Nc6 {[%emt 0:05:42]} 9. Be3 {[%emt 0:08:14]} Nb4 {
[%emt 0:08:52]} 10. O-O {[%emt 0:03:59]} Nbd5 {[%emt 0:03:48]} 11. Bd2 {
[%emt 0:06:25]} Nxc3 {[%emt 0:13:37]} 12. Bxc3 {[%emt 0:00:32]} c6 {[%emt 0:00:
00]} 13. Rad1 {[%emt 0:02:38]} Qb6 {[%emt 0:00:35]} 14. b3 {[%emt 0:07:07]} Bb4
{[%emt 0:02:32]} 15. Bxb4 {[%emt 0:11:02]} Qxb4 {[%emt 0:00:14]} 16. c4 {
[%emt 0:02:21]} a5 {[%emt 0:06:03]} 17. Qe1 {[%emt 0:11:43]} Qa3 {[%emt 0:00:
00]} 18. Ra1 {[%emt 0:04:02]} Rd8 {[%emt 0:00:50]} 19. Qc1 {[%emt 0:02:19]} Qb4
{[%emt 0:04:04]} 20. Qe1 {[%emt 0:00:20]} Bd7 {[%emt 0:03:13]} 21. Qxb4 {
[%emt 0:03:16]} axb4 {[%emt 0:00:11]} 22. Ne1 {[%emt 0:00:22]} Be8 {[%emt 0:00:
00]} 23. Nc2 {[%emt 0:00:10]} Rd6 {[%emt 0:00:37]} 24. Rfd1 {[%emt 0:01:56]}
Rad8 {[%emt 0:00:13]} 25. Bf3 {[%emt 0:03:26]} h6 {[%emt 0:02:18]} 26. Kf1 {
[%emt 0:01:49]} Nh7 {[%emt 0:03:45]} 27. Nxb4 {[%emt 0:02:43]} Rxd4 {[%emt 0:
00:00]} 28. Rxd4 {[%emt 0:00:25]} Rxd4 {[%emt 0:00:06]} 29. Ke2 {[%emt 0:02:59]
} Ng5 {[%emt 0:00:29]} 30. Bg2 {[%emt 0:01:00]} f6 {[%emt 0:01:27]} 31. a4 {
[%emt 0:00:20]} e5 {[%emt 0:01:29]} 32. a5 {[%emt 0:00:12]} Ne6 {[%emt 0:03:08]
} 33. a6 {[%emt 0:00:14]} bxa6 {[%emt 0:00:14]} 34. Nxc6 {[%emt 0:01:29]} Rd6 {
[%emt 0:00:48]} 35. Ne7+ {[%emt 0:04:32]} Kf8 {[%emt 0:00:24]} 36. Nd5 {
[%emt 0:00:58]} Nd4+ {[%emt 0:00:11]} 37. Kd3 {[%emt 0:01:20]} Nxb3 {[%emt 0:
00:00]} 38. Ra3 {[%emt 0:00:45]} Nc5+ {[%emt 0:00:52]} 39. Kc3 {[%emt 0:00:19]}
Bg6 {[%emt 0:00:26]} 40. Ra5 {[%emt 0:03:31]} Ne4+ {[%emt 0:02:31]} 41. Kb4 {
[%emt 0:02:34]} Nxf2 {[%emt 0:05:49]} 42. Kc5 {[%emt 0:02:44]} Rd8 {[%emt 0:00:
00]} 43. Rxa6 {[%emt 0:04:40]} Nd3+ {[%emt 0:02:26]} 44. Kb6 {[%emt 0:02:54]}
Rd6+ {[%emt 0:03:23]} 45. Ka7 {[%emt 0:01:08]} Rd7+ {[%emt 0:05:37]} 46. Kb8 {
[%emt 0:02:11]} Nc5 {[%emt 0:00:55]} 47. Rc6 {[%emt 0:01:49]} Be4 {[%emt 0:00:
00]} 48. Rc8+ {[%emt 0:05:24]} Kf7 {[%emt 0:00:13]} 49. Bh3 {[%emt 0:03:45]}
Bxd5 {[%emt 0:02:17]} 50. Bxd7 {[%emt 0:03:27]} Nxd7+ {[%emt 0:00:07]} 51. Ka7
{[%emt 0:00:54]} Be6 {[%emt 0:01:40]} 52. c5 {[%emt 0:00:29]} e4 {[%emt 0:00:
00]} 53. c6 {[%emt 0:00:31]} Ne5 {[%emt 0:00:25]} 54. Rc7+ {[%emt 0:00:34]} Kf8
{[%emt 0:00:21]} 55. Kb6 {[%emt 0:01:44]} e3 {[%emt 0:00:32]} 0-1